[Event "RUS-ch Youth U21 Girls 2017"]
[Site "Loo"]
[Date "2017.04.20"]
[Round "1"]
[White "Obolentseva, Alexandra"]
[Black "Khokhlova, Daria"]
[Result "1/2-1/2"]
[ECO "E94"]
[WhiteElo "2346"]
[BlackElo "2175"]
[Annotator "NA"]
[PlyCount "114"]
[EventDate "2017.??.??"]
[EventType "tourn"]
[EventCountry "RUS"]
[SourceTitle "playchess.com"]
[Source "ChessBase"]
[SourceQuality "1"]
[TimeControl "40/5400+30:1800+30"]

{[%evp 15,108,55,66,40,54,32767,32767,32767,32767,32767,32767,32767,32767,75,134,32767,32767,32767,32767,77,85,52,67,45,38,21,30,29,44,20,16,0,0,0,0,0,0,32767,0,18,32767,32767,32767,32767,32767,32767,28,32767,31,25,25,15,35,24,20,14,16,32767,32767,20,25,8,16,32767,11,32767,32767,32767,32767,32767,32767,22,16,25,32767,32767,32767,32767,32767,32767,32767,32767,12,32767,32767,8,8,32767,32767,32767,32767,32767,0,0,0]} 1. d4 {[%emt 0:00:00]} Nf6 {[%emt 0:00:04]} 2. c4 {[%emt 0:00:00]} g6 {[%emt 0:00:02]} 3. Nc3 {[%emt 0:00:00]} Bg7 {[%emt 0:00:05]} 4. e4 {[%emt 0:00:00]} d6 {[%emt 0:00:02]} 5. Nf3 {[%emt 0:00:00]} O-O {[%emt 0:00:05]} 6. Be2 {[%emt 0:00:03]} e5 {[%emt 0:00:09]} 7. O-O {[%emt 0:00:06]} Qe8 {[%emt 0:00:06]} 8. dxe5 {[%emt 0:04:55]} dxe5 {[%emt 0:00:01]} 9. Be3 {[%emt 0:01:37] LiveBook: 78 Games} b6 {[%emt 0:00:04]} 10. Nd5 {[%emt 0:01:34]} Na6 {[%emt 0:15:34]} 11. Qc2 {[%emt 0:01:46] E94: King's Indian: Classical: 6 Be2 e5 7 0-0: Various Black 7th moves} (11. Nd2 Nd7 12. a4 c6 13. Nc3 Qe7 14. a5 Rd8 15. axb6 axb6 16. Qb1 Bb7 17. Rd1 Nb4 18. Rxa8 Rxa8 {½-½ (33) Ftacnik,L (2552)-Naiditsch,A (2684) Germany 2017}) 11... c6 $146 {[%emt 0:07:25]} (11... Bg4 12. a3 Bxf3 13. Nxf6+ Bxf6 14. Bxf3 Qe7 15. b4 c6 16. Qa4 Qb7 17. Rfd1 Rfd8 18. Bg4 h5 {1-0 (61) Svane,R (2425)-Bitalzadeh,A (2423) Haarlem 2013}) 12. Nxf6+ {[%emt 0:00:25]} Bxf6 {[%emt 0:00:01]} 13. c5 {[%emt 0:03:14]} Rb8 {[%emt 0:05:12]} 14. b4 {[%emt 0:04:29]} Bg7 {[%emt 0:11:10]} ({Don't take} 14... Nxb4 $2 15. Qa4 $18) ({Better is} 14... bxc5 15. bxc5 Nc7) 15. Rfc1 {[%emt 0:06:07]} b5 {[%emt 0:01:47]} 16. a4 {[%emt 0:04:30]} Nc7 {[%emt 0:07:12]} 17. axb5 {[%emt 0:07:57]} Nxb5 {[%emt 0:00:04]} 18. Bxb5 {[%emt 0:02:34]} Rxb5 {[%emt 0:00:01]} 19. Rxa7 {[%emt 0:04:35]} Rxb4 {[%emt 0:00:45]} 20. Qd2 {[%emt 0:02:49]} Rb7 {[%emt 0:02:26]} 21. Rxb7 {[%emt 0:03:00]} Bxb7 {[%emt 0:00:01]} 22. Rd1 {[%emt 0:01:13]} Ba6 {[%emt 0:05:52]} 23. Qd6 {[%emt 0:05:20]} Be2 {[%emt 0:05:56]} 24. Rd2 {[%emt 0:00:14]} Bxf3 {[%emt 0:02:51]} 25. gxf3 {[%emt 0:00:08]} Qc8 {[%emt 0:02:05]} 26. Qd7 {[%emt 0:03:27]} Qxd7 {[%emt 0:01:09]} 27. Rxd7 {[%emt 0:00:07]} Rc8 {[%emt 0:01:09]} 28. f4 {[%emt 0:04:12]} exf4 {[%emt 0:02:50]} 29. Bxf4 {[%emt 0:00:07]} Bf6 {[%emt 0:02:40]} 30. Bd6 {[%emt 0:03:36]} Bd4 {[%emt 0:03:38]} 31. Kg2 {[%emt 0:03:46]} h5 {[%emt 0:03:26]} 32. Ra7 {[%emt 0:01:44]} g5 {[%emt 0:03:13]} 33. Ra4 {[%emt 0:01:07]} Bg7 {[%emt 0:01:28]} 34. f3 {[%emt 0:01:01]} Kh7 {[%emt 0:02:12]} 35. h4 {[%emt 0:02:57]} f6 {[%emt 0:02:23]} 36. Kh3 {[%emt 0:03:17]} Kg6 {[%emt 0:01:05]} 37. Ra7 {[%emt 0:00:35]} Bh8 {[%emt 0:02:26]} 38. Kg3 {[%emt 0:04:21]} Bg7 {[%emt 0:03:03]} 39. Ra2 {[%emt 0:03:20]} Re8 {[%emt 0:03:01]} 40. Ra6 {[%emt 0:00:00]} Rc8 {[%emt 0:01:13]} 41. Ra7 {[%emt 0:05:23]} Bh8 {[%emt 0:05:19]} 42. Ra2 {[%emt 0:05:48]} Bg7 {[%emt 0:05:02]} 43. f4 {[%emt 0:02:22]} gxf4+ {[%emt 0:00:24]} 44. Kxf4 {[%emt 0:00:21]} Bh6+ {[%emt 0:00:29]} 45. Kf3 {[%emt 0:00:07]} Bc1 {[%emt 0:03:13]} 46. Bf4 {[%emt 0:01:26]} Bxf4 {[%emt 0:00:23]} 47. Kxf4 {[%emt 0:00:08]} Rb8 {[%emt 0:09:11]} 48. Ra6 {[%emt 0:00:40]} Rb1 {[%emt 0:02:23]} ({Reject} 48... Rc8 $6 49. e5 $16) 49. Rxc6 {[%emt 0:00:40]} Rh1 {[%emt 0:03:07]} 50. e5 {[%emt 0:01:58]} Rxh4+ {[%emt 0:00:05]} 51. Kf3 {[%emt 0:00:50]} Kf5 {[%emt 0:02:35]} 52. exf6 {[%emt 0:00:09]} Rf4+ {[%emt 0:00:16]} 53. Kg3 {[%emt 0:00:16]} h4+ {[%emt 0:00:53]} 54. Kh3 {[%emt 0:00:16]} Ke5 $11 {[%emt 0:00:14]} 55. Rb6 {[%emt 0:00:34]} Rxf6 {[%emt 0:00:24]} 56. Rxf6 {[%emt 0:00:08]} Kxf6 {[%emt 0:00:04]} 57. Kxh4 {[%emt 0:00:05]} Ke5 {[%emt 0:00:03]} 1/2-1/2

[Event "RUS-ch Youth U21 Girls 2017"]
[Site "Loo"]
[Date "2017.04.20"]
[Round "1"]
[White "Dordzhieva, Dinara"]
[Black "Maltsevskaya, Aleksandra"]
[Result "1/2-1/2"]
[ECO "E68"]
[WhiteElo "2277"]
[BlackElo "2238"]
[Annotator "NA"]
[PlyCount "118"]
[EventDate "2017.??.??"]
[EventType "tourn"]
[EventCountry "RUS"]
[SourceTitle "playchess.com"]
[Source "ChessBase"]
[SourceQuality "1"]
[TimeControl "40/5400+30:1800+30"]

1. d4 {[%emt 0:00:00]} Nf6 {[%emt 0:00:12]} 2. c4 {[%emt 0:00:00]} g6 {[%emt 0:00:17]} 3. g3 {[%emt 0:00:00]} Bg7 {[%emt 0:00:09]} 4. Bg2 {[%emt 0:00:00]} O-O {[%emt 0:00:19]} 5. Nc3 {[%emt 0:00:01]} d6 {[%emt 0:00:23]} 6. Nf3 {[%emt 0:00:09]} Nbd7 {[%emt 0:00:13]} 7. O-O {[%emt 0:00:11]} e5 {[%emt 0:00:08]} 8. e4 {[%emt 0:00:24]} exd4 {[%emt 0:00:23]} 9. Nxd4 {[%emt 0:00:04]} Re8 {[%emt 0:00:10]} 10. h3 {[%emt 0:00:12]} Nc5 {[%emt 0:00:15]} 11. Re1 {[%emt 0:00:38]} Bd7 {[%emt 0:00:12]} 12. Kh2 {[%emt 0:00:06]} h6 {[%emt 0:06:16]} 13. Rb1 {[%emt 0:01:06]} a5 {[%emt 0:00:13]} 14. b3 {[%emt 0:00:58] E68: King's Indian: Fianchetto: 6...Nbd7 7 0-0 e5 8 e4} Qc8 {[%emt 0:05:46]} (14... h5 15. f3 h4 16. g4 a4 17. b4 Ne6 18. Be3 Nxd4 19. Bxd4 Be6 20. Nd5 b5 21. Bxf6 Bxf6 22. cxb5 Bxd5 23. Qxd5 {0-1 (66) Georgiev,K (2624)-Ganguly,S (2660) Tallinn 2016}) 15. f3 {[%emt 0:03:06]} Nh5 $146 {[%emt 0:17:25]} (15... Qd8 16. Be3 h5 17. Qd2 h4 18. g4 Nh7 19. f4 Nf6 20. Bf2 Bxg4 21. hxg4 Nxg4+ {1-0 (42) Freisler,P (2325)-Vybiral,Z (2180) Ceske Budejovice 1998}) 16. Be3 {[%emt 0:04:51]} c6 {[%emt 0:09:36]} 17. Qd2 {[%emt 0:03:45]} g5 {[%emt 0:04:37]} 18. Rbd1 {[%emt 0:07:16]} b6 {[%emt 0:15:07]} 19. f4 {[%emt 0:41:32]} gxf4 {[%emt 0:12:03]} 20. gxf4 {[%emt 0:00:04]} Qd8 {[%emt 0:05:07]} 21. Qf2 {[%emt 0:04:06]} Nf6 {[%emt 0:03:43]} 22. e5 {[%emt 0:09:18]} dxe5 {[%emt 0:01:05]} 23. Nxc6 {[%emt 0:00:17]} Qc8 {[%emt 0:02:42]} 24. Nxe5 {[%emt 0:00:31]} Ra7 {[%emt 0:01:21]} 25. Nxd7 $2 {[%emt 0:05:44]} (25. Rg1) 25... Rxd7 {[%emt 0:00:44]} 26. Nd5 {[%emt 0:01:18]} Nxd5 {[%emt 0:03:25]} 27. cxd5 {[%emt 0:00:44]} Ne4 $2 {[%emt 0:02:01]} (27... Rd6 28. Rg1 Qf5) 28. Bxe4 {[%emt 0:05:20]} Rxe4 {[%emt 0:00:09]} 29. Bxb6 {[%emt 0:00:40]} Rxe1 {[%emt 0:03:55]} 30. Qxe1 {[%emt 0:00:28]} a4 {[%emt 0:01:20]} 31. b4 {[%emt 0:05:51]} Qc2+ {[%emt 0:05:17]} 32. Qd2 {[%emt 0:05:30]} Qxd2+ {[%emt 0:00:06]} 33. Rxd2 {[%emt 0:00:02]} Bc3 {[%emt 0:00:07]} 34. Rd3 {[%emt 0:01:53]} Bxb4 {[%emt 0:00:05]} 35. Kg3 {[%emt 0:00:45]} f5 {[%emt 0:01:56]} 36. Kf3 {[%emt 0:00:12]} Kf7 {[%emt 0:00:09]} 37. Rd4 {[%emt 0:00:31]} Be7 {[%emt 0:00:51]} 38. Rxa4 {[%emt 0:00:48]} Rxd5 {[%emt 0:00:06]} 39. Be3 {[%emt 0:00:33]} Rd1 {[%emt 0:01:30]} 40. Ra6 {[%emt 0:00:00]} h5 {[%emt 0:00:13]} 41. a4 {[%emt 0:02:18]} Rh1 {[%emt 0:01:46]} 42. Kg2 {[%emt 0:02:29]} Ra1 {[%emt 0:01:27]} 43. a5 {[%emt 0:10:04]} Ra2+ {[%emt 0:02:11]} 44. Kf3 {[%emt 0:00:22]} Ra3 {[%emt 0:00:54]} 45. Kf2 {[%emt 0:05:57]} Ra2+ {[%emt 0:00:31]} 46. Kf1 {[%emt 0:00:37]} Ra1+ $1 {[%emt 0:00:42]} 47. Ke2 {[%emt 0:00:03]} Ra2+ {[%emt 0:00:15]} 48. Kd3 {[%emt 0:00:45]} Ra3+ {[%emt 0:00:06]} 49. Ke2 {[%emt 0:00:34]} Ra2+ {[%emt 0:00:07]} 50. Kd1 {[%emt 0:01:51]} Ra3 {[%emt 0:08:57]} 51. Bb6 {[%emt 0:01:29]} Rxh3 {[%emt 0:08:32]} 52. Ra8 {[%emt 0:03:50]} Ra3 $2 {[%emt 0:00:58]} (52... Rb3 $11) 53. a6 {[%emt 0:02:30]} h4 {[%emt 0:01:59]} 54. a7 {[%emt 0:02:12]} Ra1+ {[%emt 0:00:24]} 55. Ke2 {[%emt 0:00:46]} Bf6 $1 {[%emt 0:00:42]} ({Not} 55... Ra2+ $2 56. Kd3 $18) 56. Rc8 {[%emt 0:01:31]} h3 {[%emt 0:00:31]} 57. Bg1 {[%emt 0:00:44]} h2 {[%emt 0:01:58]} 58. Rc7+ {[%emt 0:00:40]} Ke6 {[%emt 0:00:31]} 59. Bxh2 $11 {[%emt 0:00:16]} Bd4 {[%emt 0:00:30]} 1/2-1/2

[Event "RUS-ch Youth U21 Girls 2017"]
[Site "Loo"]
[Date "2017.04.20"]
[Round "1"]
[White "Dimitrova, Aleksandra"]
[Black "Shuvalova, Polina"]
[Result "0-1"]
[ECO "B18"]
[WhiteElo "2246"]
[BlackElo "2376"]
[Annotator "NA"]
[PlyCount "130"]
[EventDate "2017.??.??"]
[EventType "tourn"]
[EventCountry "RUS"]
[SourceTitle "playchess.com"]
[Source "ChessBase"]
[SourceQuality "1"]
[TimeControl "40/5400+30:1800+30"]

1. e4 {[%emt 0:00:00]} c6 {[%emt 0:00:01]} 2. d4 {[%emt 0:00:00]} d5 {[%emt 0:00:03]} 3. Nc3 {[%emt 0:00:23]} dxe4 {[%emt 0:00:07]} 4. Nxe4 {[%emt 0:00:05]} Bf5 {[%emt 0:00:03]} 5. Ng3 {[%emt 0:00:11]} Bg6 {[%emt 0:00:04]} 6. Bc4 {[%emt 0:01:07] LiveBook: 716 Games} e6 {[%emt 0:00:54]} 7. N1e2 {[%emt 0:01:17]} Nd7 {[%emt 0:04:36]} 8. Nf4 {[%emt 0:03:13] B18: Classical Caro-Kann: 4...Bf5 sidelines} Bd6 {[%emt 0:01:56]} 9. Nfh5 $146 {[%emt 0:07:42]} (9. Bb3 Ngf6 10. Qf3 Qc7 11. h4 e5 12. Nxg6 hxg6 13. Bg5 exd4 14. O-O-O O-O-O 15. Rxd4 Be5 16. Rdd1 Nc5 17. Bc4 b5 18. Bxb5 cxb5 19. Qa8+ Qb8 20. Qc6+ Qc7 21. Qa8+ {½-½ (21) Fedorchuk,S (2624)-Postny,E (2611) Sibenik 2016}) 9... Bxh5 {[%emt 0:04:23]} 10. Nxh5 {[%emt 0:01:18]} g6 {[%emt 0:00:13]} 11. Ng3 {[%emt 0:01:39]} Ngf6 {[%emt 0:00:36]} 12. Bh6 {[%emt 0:03:00]} Qb6 {[%emt 0:06:03]} 13. Bb3 {[%emt 0:04:35]} Bf8 {[%emt 0:01:36]} 14. Bxf8 {[%emt 0:02:39]} Kxf8 {[%emt 0:00:22]} 15. O-O {[%emt 0:03:30]} Kg7 {[%emt 0:00:10]} 16. c3 {[%emt 0:03:13]} Rhd8 {[%emt 0:03:01]} 17. Qf3 {[%emt 0:05:41]} c5 {[%emt 0:02:48]} 18. Ne2 {[%emt 0:04:21]} Rac8 {[%emt 0:02:23]} 19. Rab1 {[%emt 0:04:13]} cxd4 {[%emt 0:02:40]} 20. cxd4 {[%emt 0:05:31]} Nb8 {[%emt 0:01:18]} 21. Rfd1 {[%emt 0:06:57]} Nc6 {[%emt 0:03:18]} 22. d5 {[%emt 0:08:50]} exd5 {[%emt 0:01:47]} 23. Bxd5 {[%emt 0:00:12]} Nxd5 {[%emt 0:04:22]} 24. Rxd5 {[%emt 0:00:05]} Rxd5 {[%emt 0:00:17]} 25. Qxd5 {[%emt 0:00:02] [#]} Rd8 $1 {[%emt 0:00:15]} 26. Qb3 {[%emt 0:12:56]} Qxb3 {[%emt 0:01:34]} 27. axb3 {[%emt 0:00:02]} Nd4 {[%emt 0:04:44]} 28. Nxd4 {[%emt 0:04:02]} Rxd4 {[%emt 0:00:07]} 29. Kf1 {[%emt 0:00:15]} Rd2 {[%emt 0:01:27]} 30. b4 {[%emt 0:04:21]} a6 {[%emt 0:03:48]} 31. b5 {[%emt 0:01:14]} axb5 {[%emt 0:00:13]} 32. Rc1 {[%emt 0:00:22]} Rxb2 {[%emt 0:00:45]} 33. Rc7 {[%emt 0:00:03]} h5 {[%emt 0:01:15]} 34. g3 {[%emt 0:02:35]} b4 {[%emt 0:01:18]} 35. Rxb7 {[%emt 0:00:19]} Kf6 {[%emt 0:00:05]} 36. Kg2 {[%emt 0:00:51]} b3 {[%emt 0:00:37]} 37. h4 {[%emt 0:03:55]} (37. Kf3 $17) 37... Ke6 {[%emt 0:00:11]} (37... Ke5 $142 38. Kf3 Kd4) 38. Kf3 {[%emt 0:01:47]} Rb1 {[%emt 0:00:11]} 39. Kg2 {[%emt 0:02:56]} Kd5 {[%emt 0:01:07]} 40. Rxf7 {[%emt 0:00:00]} Ra1 {[%emt 0:01:17]} 41. Rb7 {[%emt 0:03:54]} Kc4 {[%emt 0:00:06]} 42. Rc7+ {[%emt 0:03:15]} Kd3 {[%emt 0:00:07]} 43. Rd7+ {[%emt 0:00:56]} Kc2 {[%emt 0:00:01]} 44. Rc7+ {[%emt 0:00:16]} Kb1 {[%emt 0:00:02]} 45. Kf3 {[%emt 0:17:17]} Ra4 {[%emt 0:01:16]} (45... b2 $142 46. Kf4 Ra5 47. Rb7 Ka1 48. f3 b1=Q 49. Rxb1+ Kxb1 50. Ke3 Kc2 51. f4 Ra4 52. Kf2 Kd3 53. Kf3 Kd2 54. g4 Ra3+ 55. Ke4 hxg4 56. h5 gxh5 57. Kd5 g3 58. f5 g2 59. f6 g1=Q 60. Ke6 Qd4 61. Ke7 Ra7+ 62. Ke6 Qd7+ 63. Ke5 Ra5+ 64. Kf4 Qg4#) 46. Rc6 {[%emt 0:01:07]} b2 {[%emt 0:00:14]} 47. Rxg6 {[%emt 0:00:16]} Kc2 {[%emt 0:00:36]} 48. Rb6 {[%emt 0:00:27]} Ra3+ {[%emt 0:00:37]} 49. Ke2 {[%emt 0:01:12]} b1=Q {[%emt 0:00:18]} 50. Rxb1 {[%emt 0:00:05]} Kxb1 {[%emt 0:00:05]} 51. f3 {[%emt 0:00:07]} Kc2 {[%emt 0:00:14]} 52. g4 {[%emt 0:00:14]} hxg4 {[%emt 0:00:32]} 53. fxg4 {[%emt 0:00:04]} Rh3 {[%emt 0:00:52]} 54. Kf2 {[%emt 0:01:15]} Kd3 {[%emt 0:00:14]} 55. Kg2 {[%emt 0:00:15]} Rxh4 {[%emt 0:01:18]} 56. Kg3 {[%emt 0:00:10]} Rh8 {[%emt 0:00:05]} 57. Kf4 {[%emt 0:00:17]} Kd4 {[%emt 0:00:40]} 58. Kf5 {[%emt 0:00:14]} Rf8+ {[%emt 0:00:53]} 59. Ke6 {[%emt 0:00:33]} Rg8 {[%emt 0:00:01]} 60. Kf5 {[%emt 0:00:05]} Kd5 {[%emt 0:00:06]} 61. g5 {[%emt 0:00:19]} Rf8+ {[%emt 0:00:15]} 62. Kg6 {[%emt 0:00:12]} Ke6 {[%emt 0:00:04]} 63. Kh7 {[%emt 0:02:04]} Rf7+ {[%emt 0:00:51]} 64. Kh6 {[%emt 0:01:15]} Ra7 {[%emt 0:00:20]} 65. Kg6 {[%emt 0:00:56]} Rb7 {[%emt 0:00:04]} 0-1

[Event "RUS-ch Youth U21 Girls 2017"]
[Site "Loo"]
[Date "2017.04.20"]
[Round "1"]
[White "Styazhkina, Anna"]
[Black "Chernyak, Viktoria"]
[Result "0-1"]
[ECO "C07"]
[WhiteElo "2222"]
[BlackElo "2241"]
[Annotator "NA"]
[PlyCount "74"]
[EventDate "2017.??.??"]
[EventType "tourn"]
[EventCountry "RUS"]
[SourceTitle "playchess.com"]
[Source "ChessBase"]
[SourceQuality "1"]
[TimeControl "40/5400+30:1800+30"]

1. e4 {[%emt 0:00:00]} e6 {[%emt 0:00:13]} 2. d4 {[%emt 0:00:00]} d5 {[%emt 0:00:13]} 3. Nd2 {[%emt 0:00:08]} c5 {[%emt 0:00:58]} 4. dxc5 {[%emt 0:03:30]} Nf6 {[%emt 0:09:28]} 5. exd5 {[%emt 0:02:27]} Qxd5 {[%emt 0:00:38]} 6. Ngf3 {[%emt 0:00:17]} Bxc5 {[%emt 0:02:38]} 7. Bc4 {[%emt 0:01:12]} Qc6 {[%emt 0:01:53] C07: French Tarrasch: 3...c5, 4 Ngf3 and 4 exd5 Qxd5} 8. Qe2 {[%emt 0:00:37]} (8. O-O Nbd7 9. Qe2 a6 10. a4 b6 11. Nb3 Bb7 12. Nxc5 Nxc5 13. b4 Ncd7 14. Rd1 O-O 15. b5 {½-½ (31) Zherebukh,Y (2605)-So,W (2822) Saint Louis 2017}) 8... O-O {[%emt 0:00:37]} 9. O-O {[%emt 0:02:56]} b6 $146 {[%emt 0:06:24]} (9... a6 10. Nb3 Bd6 11. Bg5 b5 12. Bd3 Nbd7 13. c4 bxc4 14. Bxc4 h6 15. Be3 Nb6 16. Na5 Qc7 17. Rac1 Qb8 18. Nc6 Qb7 19. Na5 Qb8 20. Nc6 {½-½ (20) Antal,G (2539)-Fedoseev,V (2685) Gjakova 2016}) 10. Nb3 {[%emt 0:01:53]} Bb7 {[%emt 0:01:51]} 11. Nxc5 {[%emt 0:02:37]} Qxc5 {[%emt 0:00:50]} 12. Ne5 {[%emt 0:03:05]} Nc6 {[%emt 0:04:08]} 13. Nxc6 $1 {[%emt 0:01:29]} Qxc6 {[%emt 0:02:44]} 14. f3 {[%emt 0:02:13]} Rfd8 {[%emt 0:03:06]} 15. Kh1 {[%emt 0:04:38]} Rac8 {[%emt 0:09:12]} 16. b3 {[%emt 0:01:16]} Nd5 {[%emt 0:12:44]} 17. Bb2 {[%emt 0:00:37]} Qc7 {[%emt 0:03:42]} 18. Rad1 {[%emt 0:04:49]} h6 {[%emt 0:04:12]} (18... a6 $11) 19. a4 {[%emt 0:01:33]} Qe7 {[%emt 0:06:39]} 20. f4 {[%emt 0:05:31]} Qh4 {[%emt 0:04:55]} 21. Rd3 {[%emt 0:23:48]} Nxf4 {[%emt 0:09:41]} 22. Qe5 {[%emt 0:26:35]} Qg5 {[%emt 0:02:16]} 23. Rg3 $2 {[%emt 0:03:18]} (23. Rxd8+ {is a better chance.} Rxd8 24. Qxg5 hxg5 25. Kg1) 23... Bxg2+ {[%emt 0:01:08]} 24. Kg1 {[%emt 0:00:07]} Qxe5 {[%emt 0:00:16]} 25. Bxe5 {[%emt 0:00:06]} Bxf1 {[%emt 0:00:15]} 26. Rxg7+ {[%emt 0:02:32]} Kf8 {[%emt 0:00:39]} 27. Kxf1 {[%emt 0:00:58]} Rd1+ {[%emt 0:02:02]} 28. Kf2 {[%emt 0:00:07]} Ng6 {[%emt 0:00:45]} 29. Bf6 {[%emt 0:03:15]} Rd2+ {[%emt 0:01:23]} 30. Kg3 {[%emt 0:00:31]} Rxc2 {[%emt 0:02:23]} 31. Rh7 {[%emt 0:01:03]} Rc6 {[%emt 0:04:12]} 32. h4 {[%emt 0:01:22]} R2xc4 {[%emt 0:00:37]} 33. bxc4 {[%emt 0:00:46]} e5 {[%emt 0:00:17]} 34. Bd8 {[%emt 0:00:24]} Ke8 {[%emt 0:01:25]} 35. h5 {[%emt 0:00:44]} Kxd8 $19 {[%emt 0:00:08]} 36. hxg6 {[%emt 0:00:36]} Rxg6+ {[%emt 0:00:16]} 37. Kf3 {[%emt 0:00:19]} Ke7 {[%emt 0:00:06]} 0-1

[Event "RUS-ch Youth U21 Girls 2017"]
[Site "Loo"]
[Date "2017.04.21"]
[Round "2"]
[White "Chernyak, Viktoria"]
[Black "Shuvalova, Polina"]
[Result "0-1"]
[ECO "A14"]
[WhiteElo "2241"]
[BlackElo "2376"]
[Annotator "NA"]
[PlyCount "54"]
[EventDate "2017.??.??"]
[EventType "tourn"]
[EventCountry "RUS"]
[SourceTitle "playchess.com"]
[Source "ChessBase"]
[SourceQuality "1"]
[TimeControl "40/5400+30:1800+30"]

{[%evp 8,47,30,23,12,14,20,0,25,14,26,12,32767,32767,32767,32767,24,9,0,4,0,0,32767,0,6,32767,32767,-27,-17,-23,32767,32767,32767,-13,32767,-22,-18,32767,32767,32767,32767,-927]} 1. Nf3 {[%emt 0:00:00]} Nf6 {[%emt 0:00:07]} 2. c4 {[%emt 0:00:00]} e6 {[%emt 0:00:03]} 3. g3 {[%emt 0:00:39]} d5 {[%emt 0:00:02]} 4. Bg2 {[%emt 0:00:32]} Be7 {[%emt 0:00:09]} 5. O-O {[%emt 0:02:14]} O-O {[%emt 0:00:03]} 6. d4 {[%emt 0:03:59]} c6 {[%emt 0:00:06]} 7. Qc2 {[%emt 0:01:21]} b6 {[%emt 0:00:07]} 8. b3 {[%emt 0:01:54] LiveBook: 235 Games} Bb7 {[%emt 0:01:49]} 9. Bb2 {[%emt 0:02:20] E06: Closed Catalan: Early deviations} (9. Rd1 Nbd7 10. Nc3 Ba6 11. Bb2 dxc4 12. bxc4 Bxc4 13. Ne5 Nxe5 14. dxe5 Nd5 15. Ne4 b5 16. Nd6 Bxd6 17. exd6 f6 18. e4 {1-0 (53) Maletin,P (2577)-Smirnov,P (2595) Khanty-Mansiysk 2015}) 9... Na6 {[%emt 0:02:31]} 10. Nc3 {[%emt 0:04:04]} c5 {[%emt 0:08:51]} 11. Rfd1 {[%emt 0:07:48]} Nb4 $146 {[%emt 0:05:01]} (11... Qc8 12. cxd5 cxd4 13. Nxd4 Nb4 14. Qd2 Nbxd5 15. Rac1 Nxc3 16. Rxc3 Qd7 17. Nf5 Nd5 18. Rc7 Qxc7 19. Qh6 gxh6 20. Nxh6# {1-0 (20) Kuemin,S (2373)-Staechelin,R (2178) Saas Almagell 2005}) 12. Qb1 {[%emt 0:06:05]} dxc4 {[%emt 0:04:45]} 13. dxc5 {[%emt 0:02:49]} Qc8 {[%emt 0:01:39]} 14. cxb6 {[%emt 0:01:35]} cxb3 {[%emt 0:03:27]} 15. axb3 {[%emt 0:02:20]} axb6 {[%emt 0:00:56]} 16. e3 {[%emt 0:02:16]} h6 {[%emt 0:08:16]} 17. Rxa8 {[%emt 0:05:29]} Qxa8 {[%emt 0:01:32]} 18. Ne1 {[%emt 0:00:18]} Bxg2 {[%emt 0:01:06]} 19. Nxg2 {[%emt 0:00:06]} Rd8 {[%emt 0:12:57]} 20. Nf4 {[%emt 0:07:14]} e5 {[%emt 0:21:46]} 21. Nfe2 {[%emt 0:07:20]} Qf3 {[%emt 0:03:34]} 22. Rxd8+ {[%emt 0:05:42]} Bxd8 {[%emt 0:00:02]} 23. Ba3 {[%emt 0:02:07]} Ng4 {[%emt 0:03:05]} 24. Nd1 $19 {[%emt 0:01:01]} (24. Qf1 Nd3 25. Qg2 Qxf2+ 26. Qxf2 Ngxf2 27. Nc1) 24... Nd5 {[%emt 0:05:12]} 25. Qd3 {[%emt 0:02:25]} Bg5 {[%emt 0:01:30]} 26. Nc1 {[%emt 0:26:00]} Ndxe3 {[%emt 0:02:11]} 27. fxe3 {[%emt 0:00:22]} Bxe3+ {[%emt 0:00:29]} 0-1

[Event "RUS-ch Youth U21 Girls 2017"]
[Site "Loo"]
[Date "2017.04.21"]
[Round "2"]
[White "Maltsevskaya, Aleksandra"]
[Black "Obolentseva, Alexandra"]
[Result "0-1"]
[ECO "E94"]
[WhiteElo "2238"]
[BlackElo "2346"]
[Annotator "NA"]
[PlyCount "80"]
[EventDate "2017.??.??"]
[EventType "tourn"]
[EventCountry "RUS"]
[SourceTitle "playchess.com"]
[Source "ChessBase"]
[SourceQuality "1"]
[TimeControl "40/5400+30:1800+30"]

1. d4 {[%emt 0:00:00]} Nf6 {[%emt 0:00:07]} 2. c4 {[%emt 0:00:00]} g6 {[%emt 0:00:10]} 3. Nc3 {[%emt 0:00:00]} Bg7 {[%emt 0:01:26]} 4. e4 {[%emt 0:00:06]} d6 {[%emt 0:00:08]} 5. Nf3 {[%emt 0:00:10]} O-O {[%emt 0:00:09]} 6. Be2 {[%emt 0:00:07]} e5 {[%emt 0:00:17]} 7. O-O {[%emt 0:00:26]} exd4 {[%emt 0:00:31]} 8. Nxd4 {[%emt 0:00:10]} Re8 {[%emt 0:00:07]} 9. f3 {[%emt 0:00:19]} c6 {[%emt 0:00:14]} 10. Kh1 {[%emt 0:00:41]} a6 {[%emt 0:00:57]} 11. Nc2 {[%emt 0:11:32] LiveBook: 20 Games} b5 {[%emt 0:05:22]} 12. Bf4 {[%emt 0:14:09]} Bf8 {[%emt 0:03:39]} 13. Qd2 {[%emt 0:03:00]} Ra7 {[%emt 0:02:45]} 14. Rad1 {[%emt 0:10:28]} Rd7 {[%emt 0:00:36]} 15. a4 {[%emt 0:11:23]} bxc4 {[%emt 0:18:57]} 16. Bxc4 {[%emt 0:00:47]} a5 {[%emt 0:00:51]} 17. Nd4 {[%emt 0:05:53]} Qb6 {[%emt 0:06:27]} 18. Bg5 {[%emt 0:06:22]} Bg7 $1 {[%emt 0:02:01]} 19. Qf2 {[%emt 0:08:01]} (19. b3 $14) 19... Qc5 {[%emt 0:02:40]} 20. e5 {[%emt 0:08:53]} dxe5 {[%emt 0:01:31]} 21. Bxf6 {[%emt 0:01:36]} Qxc4 $17 {[%emt 0:01:50]} ({Not} 21... Bxf6 22. Ne4 Qe7 23. Nb3 $14 (23. Nxf6+ Qxf6 24. Nb3 Ba6 25. Nxa5 Rd4 $11)) 22. Bxg7 {[%emt 0:06:05]} Kxg7 {[%emt 0:00:11]} 23. Nc2 {[%emt 0:00:13]} Red8 {[%emt 0:03:22]} 24. Ne3 {[%emt 0:00:41]} Qe6 {[%emt 0:01:41]} 25. Rde1 {[%emt 0:01:45]} Ba6 {[%emt 0:02:18]} 26. Rg1 {[%emt 0:01:11]} f5 {[%emt 0:01:40]} 27. f4 {[%emt 0:02:20]} Rd2 {[%emt 0:02:29]} 28. Qh4 {[%emt 0:01:57]} R8d4 {[%emt 0:01:43]} 29. Ng4 {[%emt 0:02:29]} e4 {[%emt 0:06:09]} 30. Ne5 {[%emt 0:00:55]} Qf6 {[%emt 0:01:09]} 31. Qh3 {[%emt 0:02:14]} Nd7 {[%emt 0:02:39]} 32. g4 {[%emt 0:01:09]} Nxe5 {[%emt 0:01:03]} 33. fxe5 {[%emt 0:00:06]} Qxe5 {[%emt 0:00:10]} 34. gxf5 {[%emt 0:00:05]} Bc8 {[%emt 0:01:10]} 35. Ref1 {[%emt 0:01:03]} Kg8 {[%emt 0:03:14]} 36. Qh5 {[%emt 0:01:02]} e3 {[%emt 0:01:49]} 37. Rxg6+ {[%emt 0:00:41]} hxg6 {[%emt 0:00:08]} 38. Qxg6+ {[%emt 0:00:08]} Kf8 {[%emt 0:00:18]} 39. Qh6+ {[%emt 0:00:32]} Qg7 {[%emt 0:00:06]} 40. Qh3 {[%emt 0:00:00]} c5 {[%emt 0:00:37]} 0-1